[Event "2nd Serbia Open Masters 2022"]
[Site "Novi Sad"]
[Date "2022.07.01"]
[Round "4.49"]
[White "Papaioannou, Dimitrios"]
[Black "Risteski, Emil"]
[Result "1-0"]
[ECO "B32"]
[WhiteElo "2078"]
[BlackElo "2391"]
[Annotator "TA"]
[PlyCount "82"]
[EventDate "2022.06.28"]
[EventType "swiss"]
[EventCountry "SRB"]
[SourceTitle "playchess.com"]
[Source "ChessBase"]
[SourceQuality "1"]
[TimeControl "40/5400+30:900+30"]

{[%evp 20,82,24,27,35,22,36,41,38,38,34,38,77,45,46,46,74,70,55,73,70,49,63,54,92,25,85,85,401,399,393,402,385,382,377,339,457,450,504,498,495,484,462,468,769,752,861,662,621,488,485,485,468,369,361,358,440,369,467,370,568,511,500,471,631]} 1. e4 {[%emt 1:31:00]} c5 {[%emt 0:00:43]} 2. Nf3 {[%emt 0:00:00][%cal Bg1f3,Bf3d4,Bd4b5,Bb5a3,Ba3c2][%mdl 32]} Nc6 {[%emt 0:00:20]} 3. d4 {[%emt 0:00:00]} cxd4 {[%emt 0:00:06]} 4. Nxd4 {[%emt 0:00:00]} e5 {[%emt 0:02:44]} 5. Nb5 {[%emt 0:00:00]} d6 {[%emt 0:00:05]} 6. c4 {[%emt 0:00:00]} Be7 {[%emt 0:02:33]} 7. N1c3 {[%emt 0:00:00]} a6 {[%emt 0:00:15]} 8. Na3 {[%emt 0:00:00]} f5 {[%emt 0:00:07]} 9. exf5 {[%emt 0:00:00]} Bxf5 {[%emt 0:00:46]} 10. Bd3 {[%emt 0:00:00]} Be6 {[%emt 0:00:07]} 11. Nc2 {[%emt 0:00:00]} Nf6 {[%emt 0:00:58] Against Qh5+. B32: Sicilian: Löwenthal and Kalashnikov Variations.} 12. O-O {[%emt 0:00:00]} O-O {[%emt 0:00:45]} 13. Nd5 {[%emt 0:00:00]} Rb8 {[%emt 0:07:04] White is slightly better.} 14. b3 {[%emt 0:00:00]} Qd7 {[%emt 0:08:06]} 15. Ba3 {[%emt 0:00:00] [#]} g6 $146 {[%emt 0:04:41]} ({Predecessor:} 15... Kh8 16. Nce3 b5 17. Qd2 Bd8 18. Rac1 Bxd5 19. Nxd5 Nxd5 20. cxd5 Nd4 21. f4 Bf6 {1-0 (35) Agmanov,Z (2354)-Ozates,T (2225) Porto Carras 2018}) 16. Be2 {[%emt 0:00:00] White is more active.} Rbd8 {[%emt 0:03:28]} 17. Qd2 {[%emt 0:00:00]} Bf5 {[%emt 0:03:20]} 18. Nxe7+ {[%emt 0:00:00]} Qxe7 {[%emt 0:02:09]} 19. Ne3 {[%emt 0:00:00]} Be6 {[%emt 0:04:56]} 20. Rae1 {[%emt 0:00:00]} Ne4 {[%emt 0:04:09]} 21. Qc1 {[%emt 0:00:00]} Nd4 {[%emt 0:03:38]} 22. Bd3 {[%emt 0:00:00]} ({White should try} 22. Nc2 $16) 22... Ng5 {[%emt 0:01:53]} (22... Nc5 $11 23. Bxc5 dxc5) 23. Kh1 $16 {[%emt 0:00:34][%cal Of2f4] aiming for f4!} Rf4 $2 {[%emt 0:01:22][%mdl 8192] [#] This costs Black the game.} (23... Qd7 $16) 24. Nd5 $1 $18 {[%emt 0:01:47]} Bxd5 {[%emt 0:00:48]} 25. Qxf4 $1 {[%emt 0:00:54]} exf4 {[%emt 0:19:25]} 26. Rxe7 {[%emt 0:00:06]} Bc6 {[%emt 0:00:11]} 27. f3 {[%emt 0:01:16]} Nde6 {[%emt 0:02:37]} 28. Re1 {[%emt 0:00:33]} Nc5 {[%emt 0:00:47]} 29. Bc2 {[%emt 0:00:24]} Kf8 {[%emt 0:02:22]} 30. Bc1 {[%emt 0:01:24]} Nf7 {[%emt 0:00:33]} 31. Bxf4 {[%emt 0:00:54]} d5 {[%emt 0:00:09]} (31... Nd7 $142 32. Bd2 Rc8) 32. b4 {[%emt 0:01:14]} Nd7 {[%emt 0:00:08]} 33. Bb3 {[%emt 0:00:32]} Nf6 {[%emt 0:00:49]} 34. Bc1 {[%emt 0:02:08][%cal Ob4b5] [#] Threatens to win with b5!} dxc4 {[%emt 0:00:16]} 35. Bxc4 {[%emt 0:00:03]} Nd5 {[%emt 0:00:08]} 36. Bxd5 {[%emt 0:00:32]} Rxd5 {[%emt 0:00:12]} 37. Rc7 {[%emt 0:00:55]} g5 {[%emt 0:00:39]} 38. Be3 {[%emt 0:00:14] Strongly threatening Bc5+.} h5 {[%emt 0:00:51]} 39. h3 {[%emt 0:00:32][%cal Bh2h3,Bh3g4][%mdl 32]} g4 {[%emt 0:00:56]} (39... Kg7 $142 40. Bc1 Kg6 41. Re6+ Kf5) 40. fxg4 {[%emt 0:00:00]} hxg4 {[%emt 0:00:00]} 41. hxg4 {[%emt 0:01:35] And now Bc5+ would win.} Ne5 {[%emt 0:00:38] Weighted Error Value: White=0.27 (precise) /Black=0.58} 1-0

[Event "2nd Serbia Open Masters 2022"]
[Site "Novi Sad"]
[Date "2022.07.01"]
[Round "4.50"]
[White "Utsab Chatterjee"]
[Black "Mehmed, Elif"]
[Result "1/2-1/2"]
[ECO "B69"]
[WhiteElo "2403"]
[BlackElo "2220"]
[Annotator "TA"]
[PlyCount "130"]
[EventDate "2022.06.28"]
[EventType "swiss"]
[EventCountry "SRB"]
[SourceTitle "playchess.com"]
[Source "ChessBase"]
[SourceQuality "1"]
[TimeControl "40/5400+30:900+30"]

{[%evp 23,130,56,42,15,18,-16,-20,-18,-24,-22,0,0,0,0,-9,0,0,0,0,0,0,0,0,0,0,0,0,-24,0,-34,-30,-45,-22,-67,-22,-29,-35,-80,-64,-137,-136,-379,-359,-347,-339,-338,-173,-258,-258,-258,-258,-258,-247,-303,-276,-412,-391,-378,-152,-266,0,-615,-611,-605,-585,-887,-570,-945,-863,-1091,-988,-789,-654,-687,-648,-635,-583,-464,-8,-8,-8,-8,-8,-8,196,8,8,8,8,8,8,8,8,8,8,8,8,8,8,8,8,0,0,0,8,8,8,8,0]} 1. e4 {[%emt 0:00:49]} c5 {[%emt 0:00:15]} 2. Nf3 {[%emt 0:00:21]} d6 {[%emt 0:00:07]} 3. d4 {[%emt 0:00:06]} cxd4 {[%emt 0:00:05]} 4. Nxd4 {[%emt 0:00:04]} Nf6 {[%emt 0:00:07]} 5. Nc3 {[%emt 0:00:04]} Nc6 {[%emt 0:00:06]} 6. Bg5 {[%emt 0:00:20]} e6 {[%emt 0:00:06]} 7. Qd2 {[%emt 0:00:38]} a6 {[%emt 0:00:17]} 8. O-O-O {[%emt 0:00:49]} Bd7 {[%emt 0:00:14]} 9. f4 {[%emt 0:00:55]} Be7 {[%emt 0:00:20]} 10. Nf3 {[%emt 0:00:48]} b5 {[%emt 0:00:32]} 11. Bxf6 {[%emt 0:01:52]} gxf6 {[%emt 0:00:09]} 12. f5 {[%emt 0:01:19]} Qb6 {[%emt 0:00:56]} 13. fxe6 {[%emt 0:01:26] B69: Sicilian: Richter-Rauzer: 7...a6 8 0-0-0 Bd7 9 f4 Be7 10 Nf3 b5 11 Bxf6.} fxe6 {[%emt 0:00:18]} 14. Ne2 {[%emt 0:00:12] [#]} Qa5 $146 {[%emt 0:06:07]} ({Predecessor:} 14... O-O-O 15. Nf4 Kb8 16. g3 Rhe8 17. Bh3 Bf8 18. Bg4 Bc8 19. Rhf1 Ne5 20. Bh5 Re7 {0-1 (29) Wozniak,M (1880)-Dmochowska,A (1683) Solina 2012}) 15. Qxa5 {[%emt 0:00:49]} Nxa5 {[%emt 0:00:07]} 16. Nf4 {[%emt 0:04:59]} Bf8 {[%emt 0:20:17] And now ...Bh6 would win.} 17. g3 {[%emt 0:02:57]} Ke7 {[%emt 0:05:33]} 18. Bh3 {[%emt 0:01:28]} Bh6 {[%emt 0:04:12] ...e5 is the strong threat.} 19. Kb1 {[%emt 0:00:07]} Nc6 {[%emt 0:11:13]} 20. Rhe1 {[%emt 0:01:02]} Rhg8 {[%emt 0:01:13]} 21. Re2 {[%emt 0:08:24]} Ne5 {[%emt 0:01:08]} 22. Nd4 {[%emt 0:00:24][%cal Rh3e6] Pair of Knights!} Ng4 {[%emt 0:00:53]} 23. a3 {[%emt 0:18:18]} Rac8 {[%emt 0:07:17]} 24. Nb3 {[%emt 0:04:11]} Rb8 {[%emt 0:07:05]} 25. Na5 {[%emt 0:12:55]} Rb6 {[%emt 0:04:49]} 26. b4 {[%emt 0:00:37]} Ne5 {[%emt 0:00:26]} 27. Rf1 {[%emt 0:06:52]} Rbb8 {[%emt 0:12:11]} 28. Ref2 {[%emt 0:04:19][%cal Of4e6]} Rgf8 {[%emt 0:01:11][%cal Bg8f8,Bf8c8,Bc8c3][%mdl 32]} 29. Rd1 {[%emt 0:05:13]} Rfc8 {[%emt 0:01:29]} 30. Ka2 {[%emt 0:07:48]} Rc3 {[%emt 0:03:38]} 31. Nb3 {[%emt 0:10:25]} (31. Rfd2 $15) 31... Rbc8 $17 {[%emt 0:06:05]} 32. Rdd2 {[%emt 0:01:24]} (32. Nd4 $17) 32... Bxf4 {[%emt 0:01:01]} 33. gxf4 {[%emt 0:00:06]} Nf3 {[%emt 0:01:54]} ({Stronger than} 33... Rxh3 34. fxe5 fxe5 35. Rg2 $17) 34. Rd3 {[%emt 0:02:03]} Ne1 {[%emt 0:00:07]} (34... Rxc2+ $142 35. Rxc2 Rxc2+ 36. Kb1 Rf2) 35. Rg3 {[%emt 0:02:15]} (35. Rxc3 {keeps fighting.} Rxc3 36. Bg4) 35... Rxg3 $19 ({Avoid the trap} 35... Rxc2+ $2 36. Rxc2 Rxc2+ 37. Kb1 Rxh2 38. Nd4 $19) ({Not} 35... Nxc2 36. Rg7+ Kd8 37. Rxh7 $11) 36. hxg3 {[%emt 0:00:01]} Rxc2+ {[%emt 0:03:12]} 37. Rxc2 {[%emt 0:00:04]} Nxc2 {[%emt 0:00:03][%mdl 4096] Endgame KBN-KBN} 38. Bf1 {[%emt 0:01:56]} e5 {[%emt 0:01:46]} 39. Kb2 {[%emt 0:00:46]} (39. fxe5 $142 fxe5 40. Bd3) 39... Ne3 {[%emt 0:00:57]} 40. Be2 {[%emt 0:00:00]} Bc6 {[%emt 0:00:00]} (40... Bg4 $19 41. Bxg4 Nxg4) 41. Nd2 {[%emt 0:00:30]} (41. fxe5 $17 {was the only defense.} fxe5 42. Nd2) 41... Bd7 $2 {[%emt 0:05:39]} ({Black should play} 41... f5 $19 {Threatens to win with ...exf4.} 42. fxe5 fxe4) 42. Nf1 $2 {[%emt 0:07:10][%mdl 8192]} (42. Nb3 $11) 42... Nxf1 {[%emt 0:02:05]} 43. Bxf1 {[%emt 0:00:07] KB-KB} Bc6 {[%emt 0:02:31]} 44. fxe5 {[%emt 0:00:09]} fxe5 {[%emt 0:03:43]} 45. Bg2 {[%emt 0:00:06]} Kf6 $1 {[%emt 0:02:25]} 46. Kc3 {[%emt 0:00:09]} Kg5 $1 {[%emt 0:00:05] White must now prevent ...Kg4.} 47. Bf3 {[%emt 0:00:05]} h5 {[%emt 0:03:51]} 48. Kd3 {[%emt 0:00:26]} h4 $1 {[%emt 0:00:24]} 49. gxh4+ {[%emt 0:00:22] [#]} Kf4 $1 {[%emt 0:00:05]} 50. Bg2 {[%emt 0:02:18]} Be8 {[%emt 0:01:12]} (50... Kg3 $19 51. Bf1 Kf3 52. Be2+ Kf4) 51. Bh3 $11 {[%emt 0:03:01]} Bg6 {[%emt 0:00:52]} 52. Bc8 {[%emt 0:00:07]} Bxe4+ {[%emt 0:00:04]} 53. Kd2 $1 {[%emt 0:01:02]} Kf3 $2 {[%emt 0:01:02] [#]} (53... Bc6 $11) 54. Bxa6 $2 {[%emt 0:00:56]} (54. h5 $1 $18) 54... Bc6 {[%emt 0:00:29] Hoping for ...Kf2. The position is equal.} 55. h5 {[%emt 0:01:23]} Kf2 $1 {[%emt 0:00:33]} 56. h6 {[%emt 0:02:36] Intending h7 and mate.} e4 {[%emt 0:00:07]} 57. h7 {[%emt 0:00:09]} e3+ {[%emt 0:00:03]} 58. Kd3 {[%emt 0:00:18]} e2 {[%emt 0:00:47]} 59. h8=Q {[%emt 0:00:07] White wants to mate with Qd4+.} e1=Q {[%emt 0:00:05] KQB-KQB} 60. Qh4+ {[%emt 0:02:10]} Kf1 {[%emt 0:00:05]} 61. Qf4+ {[%emt 0:00:24]} Kg2 {[%emt 0:01:04]} 62. Qg5+ {[%emt 0:02:15]} Kf1 {[%emt 0:01:07] ( -> ...Qe2+)} 63. Qf4+ {[%emt 0:01:00]} Kg2 {[%emt 0:00:08]} 64. Qd2+ {[%emt 0:00:40]} Kf1 {[%emt 0:00:59]} 65. Qxe1+ {[%emt 0:00:45]} Kxe1 {[%emt 0:00:04] Black had all chances to win.  Weighted Error Value: White=0.63/Black=0.35} 1/2-1/2

[Event "2nd Serbia Open Masters 2022"]
[Site "Novi Sad"]
[Date "2022.07.01"]
[Round "4.51"]
[White "Wagh Suyog"]
[Black "Indjic, Aleksandar"]
[Result "0-1"]
[ECO "A64"]
[WhiteElo "2352"]
[BlackElo "2621"]
[Annotator "TA"]
[PlyCount "80"]
[EventDate "2022.06.28"]
[EventType "swiss"]
[EventCountry "SRB"]
[SourceTitle "playchess.com"]
[Source "ChessBase"]
[SourceQuality "1"]
[TimeControl "40/5400+30:900+30"]

{[%evp 22,80,15,9,44,42,31,0,3,0,19,0,0,-7,0,16,0,-104,-24,-36,-23,-50,-53,-40,-64,-143,-128,-114,-110,-190,-184,-237,-239,-252,-240,-296,-278,-412,-410,-410,-374,-367,-370,-1142,-1138,-1122,-1077,-1062,-1055,-29972,-29966,-29979,-29980,-29979,0,-29980,-29981,-29995,-29996,-29996,-83]} 1. d4 {[%emt 1:31:00][%cal Bd2d4,Bd4d5][%mdl 32]} Nf6 {[%emt 1:31:00]} 2. c4 {[%emt 0:00:30]} c5 {[%emt 0:00:30]} 3. d5 {[%emt 0:00:30]} g6 {[%emt 0:00:30]} 4. Nc3 {[%emt 0:00:30]} Bg7 {[%emt 0:00:30]} 5. Nf3 {[%emt 0:00:30]} O-O {[%emt 0:00:30]} 6. g3 {[%emt 0:00:30]} e6 {[%emt 0:00:30]} 7. Bg2 {[%emt 0:00:30]} exd5 {[%emt 0:00:30]} 8. cxd5 {[%emt 0:00:30]} d6 {[%emt 0:00:30]} 9. O-O {[%emt 0:00:30]} Re8 {[%emt 0:00:30]} 10. Nd2 {[%emt 0:00:30]} Nbd7 {[%emt 0:00:30][%cal Bb8d7,Bd7f6,Bf6g4][%mdl 32]} 11. a4 {[%emt 0:00:30] The main line 11.a4 scores better than 11.h3.} a6 {[%emt 0:00:30]} 12. Ra2 {[%emt 0:00:30]} Nh5 $5 {[%emt 0:00:30][%mdl 4] An interesting side line. A64: Modern Benoni: Fianchetto Variation: 9...Nbd7 10 Nd2 a6 11 a4 Re8.} 13. Nce4 {[%emt 0:00:30]} Ndf6 {[%emt 0:00:30]} 14. Nc3 {[%emt 0:00:30]} Ng4 {[%emt 0:00:30] The position is equal.} 15. h3 {[%emt 0:00:30]} Ne5 {[%emt 0:00:30] [#]} 16. f4 $146 {[%emt 0:00:30]} ({Predecessor:} 16. Kh2 f5 17. f4 Nf7 18. e4 Nf6 19. Re1 b6 20. Nc4 fxe4 21. Nxe4 Nxe4 22. Rxe4 Rxe4 23. Bxe4 Bd7 24. g4 {½-½ (40) Plischki,S (2375)-Elias,J (1997) Prague 2022}) 16... Nxg3 {[%emt 0:00:30][%cal Oe5g4] aiming for ...Ng4!} 17. fxe5 {[%emt 0:00:30]} Nxf1 {[%emt 0:00:30]} 18. Qxf1 {[%emt 0:00:30]} Rxe5 {[%emt 0:00:30]} 19. Nf3 {[%emt 0:00:30]} (19. Nc4 $11) 19... Re8 {[%emt 0:00:30]} ({Black should play} 19... Rh5 $17 20. Ra3 Bd7) 20. Bf4 {[%emt 0:00:30]} h6 {[%emt 0:00:30]} 21. a5 {[%emt 0:00:30]} g5 {[%emt 0:00:30]} 22. Bg3 {[%emt 0:00:30]} f5 {[%emt 0:00:30][%cal Bf7f5,Bf5f4][%mdl 32]} 23. Kh1 {[%emt 0:00:30] White is on the road to losing.} (23. Bf2 $15) 23... f4 $17 {[%emt 0:00:30]} 24. Bf2 {[%emt 0:00:30]} Qe7 {[%emt 0:00:30]} 25. Ng1 {[%emt 0:00:30]} (25. Nd2 $17) 25... Bf5 $19 {[%emt 0:00:30]} 26. Qd1 {[%emt 0:00:30]} (26. Ra1 $142) 26... Qf7 {[%emt 0:00:30]} 27. Qd2 {[%emt 0:00:30]} Re7 {[%emt 0:00:30][%cal Be8e7,Be7e3,Be3h3][%mdl 32]} 28. Ra1 {[%emt 0:00:30]} Rae8 {[%emt 0:00:30]} 29. Re1 {[%emt 0:00:30]} (29. Qc1 $142) 29... Qh5 {[%emt 0:00:30]} 30. Rf1 {[%emt 0:00:30]} Bd7 {[%emt 0:00:30]} 31. Be1 {[%emt 0:00:30]} Re3 {[%emt 0:00:30][%cal Rd7h3]} 32. Bf2 $2 {[%emt 0:00:30] [#]} (32. Rf3 g4 33. Rxe3 fxe3 34. Qd3) 32... Bxh3 $1 {[%emt 0:00:30]} 33. Nxh3 {[%emt 0:00:30]} Rxh3+ {[%emt 0:00:30]} 34. Kg1 {[%emt 0:00:30]} Rh2 {[%emt 0:00:30]} 35. Ra1 {[%emt 0:00:30]} g4 {[%emt 0:00:30]} 36. Qxf4 {[%emt 0:00:30] [#]} Rxg2+ $1 {[%emt 0:00:30][%mdl 512]} 37. Kxg2 {[%emt 0:00:30]} Qh3+ {[%emt 0:00:30]} 38. Kg1 {[%emt 0:00:30]} Be5 {[%emt 0:00:30][%cal Bg7e5,Be5h2,Bh2g3][%mdl 32] Black mates.} 39. Qf5 {[%emt 0:00:30]} Bh2+ {[%emt 0:00:30]} 40. Kh1 {[%emt 0:00:30]} Bg3+ {[%emt 0:00:30] Weighted Error Value: White=0.64/Black=0.08 (flawless)} 0-1

[Event "2nd Serbia Open Masters 2022"]
[Site "Novi Sad"]
[Date "2022.07.01"]
[Round "4.52"]
[White "Mendonca, Leon Luke"]
[Black "Jocev, Milan"]
[Result "1-0"]
[ECO "D12"]
[WhiteElo "2551"]
[BlackElo "2317"]
[Annotator "TA"]
[PlyCount "69"]
[EventDate "2022.06.28"]
[EventType "swiss"]
[EventCountry "SRB"]
[SourceTitle "playchess.com"]
[Source "ChessBase"]
[SourceQuality "1"]
[TimeControl "40/5400+30:900+30"]

{[%evp 15,69,14,15,10,21,18,33,21,30,26,43,54,76,78,67,68,139,122,147,133,125,111,179,174,200,204,251,250,333,320,337,305,574,554,630,623,1033,1029,1112,1062,1045,1029,1147,1109,1017,838,806,793,1335,1350,1254,1243,1146,1094,1063,987]} 1. d4 {[%emt 0:00:02]} d5 {[%emt 0:14:25]} 2. c4 {[%emt 0:00:13]} c6 {[%emt 0:00:21]} 3. Nf3 {[%emt 0:00:06]} Nf6 {[%emt 0:00:06]} 4. e3 {[%emt 0:00:17]} Bf5 {[%emt 0:00:45]} 5. Nc3 {[%emt 0:00:07]} e6 {[%emt 0:00:30]} 6. Nh4 {[%emt 0:00:11]} Bg6 {[%emt 0:00:30]} 7. Qb3 {[%emt 0:03:35]} Qb6 {[%emt 0:04:55]} 8. Nxg6 {[%emt 0:03:16]} hxg6 {[%emt 0:00:18]} 9. Bd2 {[%emt 0:12:42] D12: Slav Defence: 3 Nf3 Nf6 4 e3 Bf5.} Nbd7 {[%emt 0:00:25]} 10. Be2 {[%emt 0:02:56]} Qc7 {[%emt 0:04:26] [#]} 11. cxd5 $146 {[%emt 0:03:31] White is slightly better.} ({Predecessor:} 11. h3 Nb6 12. Rc1 Be7 13. O-O g5 14. cxd5 exd5 15. f4 gxf4 16. exf4 O-O 17. f5 {½-½ (27) Kempinski,R (2617)-Bindrich,F (2504) Czech Republic 2010}) 11... exd5 {[%emt 0:00:44]} 12. h4 {[%emt 0:03:17]} Qb6 {[%emt 0:16:54]} 13. Qc2 {[%emt 0:07:10]} g5 {[%emt 0:12:12]} 14. h5 {[%emt 0:04:13]} g4 {[%emt 0:00:50]} 15. O-O-O {[%emt 0:02:24]} Rxh5 {[%emt 0:08:14]} (15... O-O-O $14) 16. Rxh5 $16 {[%emt 0:12:11]} Nxh5 {[%emt 0:03:42]} 17. Bxg4 {[%emt 0:00:06]} ({Much less strong is} 17. Na4 $6 Qd8 $14) 17... Nhf6 {[%emt 0:00:08]} 18. Bf3 {[%emt 0:00:57]} Bd6 {[%emt 0:03:20]} (18... g6 $16 {might work better.}) 19. g4 $18 {[%emt 0:02:50][%cal Bg2g4,Bg4g5][%mdl 32]} Nf8 {[%emt 0:05:09]} 20. g5 {[%emt 0:06:04]} N6d7 {[%emt 0:00:25]} 21. Kb1 {[%emt 0:03:18]} g6 {[%emt 0:05:23]} 22. e4 {[%emt 0:09:11]} dxe4 {[%emt 0:07:01]} 23. Qxe4+ {[%emt 0:00:12]} Kd8 $2 {[%emt 0:00:51]} (23... Ne6 {was necessary.} 24. Bg4 O-O-O) 24. Bg4 {[%emt 0:10:13] White is clearly winning.} Ba3 {[%emt 0:05:16][%csl Ga3][%cal Rb6b2]} 25. Bc1 {[%emt 0:01:12] Threatens to win with Re1.} Bb4 {[%emt 0:00:19] [#]} 26. Re1 $1 {[%emt 0:02:47]} Ne6 {[%emt 0:05:12]} 27. Bxe6 {[%emt 0:00:36]} fxe6 {[%emt 0:00:12] [#]} 28. Qxe6 $1 {[%emt 0:00:46][%cal Oc1f4] Intending Bf4! and mate.} Qxd4 {[%emt 0:00:12]} (28... Qa5 29. Qe8+) 29. Rd1 {[%emt 0:01:11]} Qg7 {[%emt 0:00:07]} 30. Ne4 {[%emt 0:00:08] Nf6 would kill now.} Qe7 {[%emt 0:00:40]} 31. Qc4 {[%emt 0:01:07]} b5 {[%emt 0:01:50]} 32. Qxc6 {[%emt 0:01:22] White wants to mate with Nf6.} Rc8 {[%emt 0:00:15]} 33. Qxg6 {[%emt 0:01:07] Strongly threatening Bf4.} Kc7 {[%emt 0:00:25]} 34. Bf4+ {[%emt 0:02:43]} Kb7 {[%emt 0:00:05]} 35. Bd6 {[%emt 0:00:15] White took control after the opening.  Weighted Error Value: White=0.02 (flawless) /Black=0.55} 1-0

[Event "2nd Serbia Open Masters 2022"]
[Site "Novi Sad"]
[Date "2022.07.02"]
[Round "5.1"]
[White "Can, Emre"]
[Black "Adhiban, B.."]
[Result "1/2-1/2"]
[ECO "D30"]
[WhiteElo "2599"]
[BlackElo "2616"]
[Annotator "TA"]
[PlyCount "26"]
[EventDate "2022.06.28"]
[EventType "swiss"]
[EventCountry "SRB"]
[SourceTitle "playchess.com"]
[Source "ChessBase"]
[SourceQuality "1"]
[TimeControl "40/5400+30:900+30"]

{[%evp 11,26,0,0,4,9,0,36,43,31,42,40,41,39,42,47,42,34]} 1. d4 {[%emt 0:00:06]} e6 {[%emt 0:00:09]} 2. c4 {[%emt 0:00:36]} d5 {[%emt 0:00:09]} 3. g3 {[%emt 0:00:24]} dxc4 {[%emt 0:06:29]} 4. Bg2 {[%emt 0:00:55]} c6 {[%emt 0:08:31]} 5. Nf3 {[%emt 0:06:10][%cal Bg1f3,Bf3e5,Be5c6][%mdl 32]} b5 {[%emt 0:01:17]} 6. O-O {[%emt 0:04:32]} Bb7 {[%emt 0:00:05]} 7. Nc3 {[%emt 0:01:14] D30: Queen's Gambit Declined: Systems without Nc3.} a6 {[%emt 0:04:31]} 8. Ne5 {[%emt 0:06:52]} Nd7 $5 {[%emt 0:20:15][%mdl 4] An interesting side line.} 9. Nxc6 {[%emt 0:06:15] [#] White is slightly better.} Qb6 $5 $146 {[%emt 0:01:19][%mdl 8] [#] An interesting novelty.} ({Predecessor:} 9... Qc8 10. d5 b4 11. Na5 bxc3 12. Nxb7 Rb8 13. dxe6 fxe6 14. bxc3 Rxb7 15. Bxb7 Qxb7 {1-0 (43) Nesterov,A (2473)-Remizov,Y (2354) Cheliabinsk 2019}) 10. Be3 $1 {[%emt 0:06:36] And now d5 would win.} Ngf6 {[%emt 0:01:09]} ({Weaker is} 10... Bxc6 11. d5 Bc5 12. dxc6 $16) 11. d5 {[%emt 0:02:25]} Bc5 {[%emt 0:01:20]} 12. dxe6 {[%emt 0:26:44]} fxe6 {[%emt 0:08:26]} 13. Bxc5 {[%emt 0:00:37]} Qxc5 {[%emt 0:03:48] Weighted Error Value: White=0.01 (flawless) /Black=0.07 (flawless)} 1/2-1/2